bitfinex-derivatives/quotes_ETHF0:USTF0_20250624
["timestamp","ask_amount","ask_price","bid_price","bid_amount"]
[1750792249380,0.65586,2438.3,2438.2,0.65587]
[1750792249674,25.404,2438.3,2438.2,0.71587]
[1750792250267,0.65584,2438.3,2438.2,0.06]
[1750792250673,0.65584,2438.3,2438.2,0.71587]
[1750792251178,25.401,2438.4,2438.3,0.65584]
[1750792251179,26.05683,2438.4,2438.3,0.65584]
[1750792251373,25.401,2438.4,2438.3,0.04]
[1750792251673,26.05682,2438.4,2438.3,0.04]
[1750792252062,0.65586,2438.3,2438.1,1.34158]
[1750792252374,0.65586,2438.3,2438.1,2.20158]
[1750792253973,26.05683,2438.4,2438.2,0.65585]
[1750792254172,26.05683,2438.4,2438.2,1.19586]
[1750792254372,3.2078,2438.8,2438.2,7.221]
[1750792254567,55.65651059,2439.1,2438.3,1.63962]
[1750792254568,3.2078,2439.1,2438.3,1.63962]
[1750792254774,27.17340416,2439.0,2438.8,0.6557]
[1750792254973,6.681,2439.1,2438.9,0.7163]
[1750792255165,26.04966,2439.0,2438.9,1.3363]
[1750792255366,25.394,2439.0,2438.9,1.99198]
[1750792255576,26.04966,2439.0,2438.9,1.99198]
[1750792255764,25.394,2439.0,2438.9,1.99198]
[1750792255964,26.04966,2439.0,2438.9,1.99198]
[1750792256176,26.04966,2439.0,2438.9,1.3363]
[1750792258477,26.04966,2439.0,2438.9,0.62]
[1750792258667,31.82086448,2439.0,2438.9,0.62]
[1750792258863,33.16336448,2439.0,2438.9,0.62]
[1750792259879,38.16336448,2439.0,2438.9,0.62]
[1750792260083,38.16336448,2439.0,2438.2,0.73956]
[1750792260084,0.65583,2438.4,2438.2,0.73956]
[1750792260273,25.385,2438.4,2438.3,0.65584]
[1750792260572,26.04082,2438.4,2438.3,0.75]
[1750792260977,27.42692,2438.4,2438.3,0.75]
[1750792262076,26.04082,2438.4,2438.3,0.75]
[1750792262681,0.65582,2438.4,2438.3,0.75]
[1750792263380,0.65582,2438.4,2438.3,1.4604]
[1750792263575,6.42702448,2438.4,2438.3,0.75]
[1750792263880,9.63482448,2438.4,2438.3,0.75]
[1750792264074,17.13722138,2438.4,2438.3,0.75]
[1750792265269,12.13722138,2438.4,2438.3,0.75]
[1750792265472,42.81792138,2438.4,2438.3,0.75]
[1750792265677,37.0467169,2438.4,2438.3,0.75]
[1750792269286,1.7789169,2438.4,2438.3,0.75]
[1750792269486,26.0348,2438.5,2438.3,1.40583]
[1750792269790,0.65582,2438.4,2438.3,0.75]
[1750792270179,0.65582,2438.4,2438.3,1.40584]
[1750792270379,1.63931,2438.8,2438.7,0.65574]
[1750792270380,0.65572,2438.8,2438.7,0.65574]
[1750792270575,1.78077862,2438.8,2438.7,0.65574]
[1750792270790,1.78077862,2438.8,2438.7,0.96574]
[1750792271283,0.65567,2439.0,2438.9,0.65566]
[1750792271487,26.03167,2439.0,2438.9,0.47]
[1750792271687,27.15717248,2439.0,2438.9,0.47]
[1750792272091,26.50150248,2439.0,2438.9,1.12568]
[1750792272288,27.15716248,2439.0,2438.9,0.47]
[1750792274890,30.36496248,2439.0,2438.9,0.47]
[1750792275988,31.69476248,2439.0,2438.9,0.16249585]
[1750792276994,34.13499101,2439.0,2438.9,0.16249585]
[1750792277390,39.13499101,2439.0,2438.9,0.16249585]
[1750792278286,1.63935,2438.7,2438.2,0.65587]
[1750792278588,0.65581,2438.5,2438.2,6.45587]
[1750792278786,26.49550248,2438.4,2438.2,6.45587]
[1750792279000,25.37,2438.4,2438.2,6.45587]
[1750792279190,25.37,2438.4,2438.2,5.8]
[1750792279390,26.02582,2438.4,2438.2,5.8]
[1750792279590,1.12640891,2438.3,2438.2,6.45586]
[1750792280993,1.78224891,2438.3,2438.2,5.8]
[1750792284203,1.78224891,2438.3,2438.2,6.45587]
[1750792284395,1.12640891,2438.3,2438.2,6.45587]
[1750792284787,1.78224891,2438.3,2438.2,6.45587]
[1750792285293,1.12640891,2438.3,2438.2,6.45587]
[1750792285494,1.78224891,2438.3,2438.2,6.45587]
[1750792286197,1.12640891,2438.3,2438.2,6.45587]
[1750792290900,1.78224891,2438.3,2438.2,6.45587]
[1750792291602,1.12640891,2438.3,2438.2,6.45587]
[1750792291798,1.12640891,2438.3,2438.2,7.85607]
[1750792293207,0.65576,2438.7,2438.6,0.65575]
[1750792293399,26.01776,2438.7,2438.6,1.07575]
[1750792293606,3.2078,2438.8,2438.7,0.65574]
[1750792293795,3.2078,2438.8,2438.7,2.86814]
[1750792294703,8.2078,2438.8,2438.2,0.94]
[1750792294908,0.65587,2438.3,2438.2,2.95]
[1750792297011,1.32427,2438.3,2438.2,2.95]
[1750792297213,2.69617,2438.3,2438.2,2.95]
[1750792297901,7.69617,2438.3,2438.2,2.95]
[1750792298206,2.69617,2438.3,2438.2,2.6335911]
[1750792298406,0.6684,2438.3,2438.2,2.6335911]
[1750792298606,26.01384,2438.3,2438.2,2.6335911]
[1750792300119,25.358,2438.3,2438.2,3.2894611]
[1750792301111,26.01384,2438.3,2438.2,2.6335911]
[1750792301316,25.358,2438.3,2438.2,2.6335911]
[1750792301616,26.01384,2438.3,2438.2,2.6335911]
[1750792305209,27.13378827,2438.3,2438.2,2.6335911]
[1750792307519,26.47794827,2438.3,2438.2,3.2894611]
[1750792308124,27.13378827,2438.3,2438.2,2.6335911]
[1750792308418,27.13378827,2438.3,2438.2,3.2894611]
[1750792308822,26.47794827,2438.3,2438.2,3.2894611]
[1750792309520,27.13378827,2438.3,2438.2,3.2894611]
[1750792309722,26.47794827,2438.3,2438.2,3.2894611]
[1750792310124,1.11994827,2438.3,2438.2,6.4972611]
[1750792310627,0.65573,2438.8,2438.7,0.65574]
[1750792310828,26.00873,2438.8,2438.7,1.34574]
[1750792311028,25.353,2438.8,2438.7,1.34574]
[1750792311430,26.00871,2438.8,2438.7,1.34574]
[1750792311621,25.353,2438.8,2438.7,1.34574]
[1750792312322,25.353,2438.8,2438.7,2.00414]
[1750792312528,26.00871,2438.8,2438.7,2.00414]
[1750792312833,0.6557,2438.9,2438.8,0.6557]
[1750792313036,0.65571,2438.8,2438.7,0.6584]
[1750792313337,0.65571,2438.8,2438.7,1.2984]
[1750792313728,0.65571,2438.8,2438.7,0.64]
[1750792313934,3.74868,2438.8,2438.3,2.06842]
[1750792314128,5.77120448,2438.6,2438.3,3.44842]
[1750792314326,0.65582,2438.4,2438.3,1.38]
[1750792314532,0.65582,2438.4,2438.3,2.03584]
[1750792315231,25.35,2438.5,2438.3,2.03584]
[1750792315434,0.65582,2438.4,2438.3,1.38]
[1750792315733,1.35822,2438.4,2438.3,1.38]
[1750792317833,1.35822,2438.4,2438.3,2.03584]
[1750792318037,0.7024,2438.4,2438.3,2.03584]
[1750792318339,1.35822,2438.4,2438.3,2.03584]
[1750792318637,1.35822,2438.4,2438.3,1.38]
[1750792320840,26.7174,2438.5,2438.3,2.03584]
[1750792321138,0.65582,2438.4,2438.3,2.03584]
[1750792322035,26.00581,2438.5,2438.3,2.03584]
[1750792322639,26.00581,2438.5,2438.4,0.6583]
[1750792322839,27.1201662,2438.5,2438.4,1.2583]
[1750792323233,1.7701662,2438.5,2438.4,1.91412]
[1750792323441,27.1141662,2438.5,2438.4,1.2583]
[1750792323640,1.7701662,2438.5,2438.4,1.2583]
[1750792323842,27.1141662,2438.5,2438.4,1.91412]
[1750792324141,1.1143562,2438.5,2438.4,1.91412]
[1750792324934,32.22856068,2438.5,2438.0,0.65591]
[1750792325134,0.6559,2438.1,2438.0,0.75]
[1750792325339,33.7682562,2438.1,2438.0,0.75]
[1750792325535,35.1517562,2438.1,2438.0,0.75]
[1750792325735,1.7702562,2438.1,2438.0,0.75]
[1750792325937,27.1132562,2438.1,2438.0,0.75]
[1750792327442,32.88446068,2438.1,2438.0,0.75]
[1750792328538,32.884889,2438.1,2438.0,0.75]
[1750792329738,32.228989,2438.1,2438.0,1.40592]
[1750792330047,26.45778452,2438.1,2438.0,1.40592]
[1750792330544,27.11368452,2438.1,2438.0,1.40592]
[1750792330745,26.45778452,2438.1,2438.0,1.40592]
[1750792330948,26.45778452,2438.1,2438.0,2.72112]
[1750792333746,1.11478452,2438.1,2438.0,2.72112]
[1750792334952,1.77068452,2438.1,2438.0,2.72112]
[1750792335547,1.77068452,2438.1,2438.0,0.75]
[1750792335748,7.541889,2438.1,2438.0,0.75]
[1750792336651,1.11478452,2438.1,2438.0,1.40592]
[1750792336950,1.11478452,2438.1,2438.0,2.79562]
[1750792337347,1.77068452,2438.1,2438.0,2.79562]
[1750792337546,1.77068452,2438.1,2438.0,0.75]
[1750792337752,2.48988452,2438.1,2438.0,0.75]
[1750792338144,8.261089,2438.1,2438.0,0.75]
[1750792338350,8.261089,2438.1,2437.8,3.2078]
[1750792338351,0.65601,2437.7,2437.6,0.6493]
[1750792338651,6.42721448,2437.7,2437.6,5.65]
[1750792338857,7.541999,2437.7,2437.6,5.65]
[1750792339048,8.897699,2437.7,2437.6,5.65]
[1750792339247,9.21492823,2437.7,2437.6,5.65]
[1750792339746,8.897699,2437.7,2437.6,5.65]
[1750792341856,1.77079452,2437.7,2437.6,5.65]
[1750792342246,3.16509452,2437.7,2437.6,5.65]
[1750792344751,1.77079452,2437.7,2437.6,5.65]
[1750792348254,8.41779452,2437.7,2437.6,5.65]
[1750792348750,10.52339452,2437.7,2437.6,5.65]
[1750792349156,10.52339452,2437.7,2437.6,5.28005172]
[1750792349855,12.96216754,2437.7,2437.6,5.28005172]
[1750792350056,12.96216754,2437.7,2437.6,4.97236257]
[1750792350257,0.65614,2437.2,2437.1,1.3712]
[1750792350552,29.05020112,2437.2,2437.1,2.9712]
[1750792350755,30.16498564,2437.2,2437.1,2.9712]
[1750792351056,30.16498564,2437.2,2437.1,1.6]
[1750792351251,30.86188564,2437.2,2437.1,1.6]
[1750792351449,32.21698564,2437.2,2437.1,1.6]
[1750792352255,34.93993099,2437.2,2437.1,1.6]
[1750792357261,39.93993099,2437.2,2437.1,1e-05]
[1750792357462,0.65636,2436.4,2436.3,1.3788]
[1750792357764,25.99636,2436.4,2436.3,4.9166]
[1750792360666,25.34,2436.4,2436.3,5.57298]
[1750792360868,25.99836,2436.4,2436.3,4.9166]
[1750792362971,25.99836,2436.4,2436.3,2.11]
[1750792363179,25.99836,2436.4,2434.7,4.33468]
[1750792363180,0.65679,2434.8,2434.7,4.33468]
[1750792363465,0.65679,2434.8,2433.3,0.27208202]
[1750792363466,5.77800647,2434.7,2433.3,0.27208202]
[1750792363666,5.77800647,2434.7,2433.3,2.41208202]
[1750792363667,0.65716,2433.4,2433.3,2.41208202]
[1750792363862,31.02893762,2433.4,2433.3,2.41208202]
[1750792364059,1.16097762,2433.4,2433.3,2.41208202]
[1750792364267,26.032,2433.6,2433.3,2.41208202]
[1750792364466,26.032,2433.6,2433.4,3.2078]
[1750792364663,5.77800647,2434.1,2433.4,4.9678]
[1750792364863,6.43500647,2434.1,2433.7,3.2078]
[1750792365171,0.41161819,2434.1,2433.7,0.95]
[1750792365473,3.2078,2434.3,2433.7,0.95]
[1750792365474,0.65706,2433.8,2433.7,0.95]
[1750792365864,0.65706,2433.8,2433.7,4.1578]
[1750792366065,0.65706,2433.8,2433.7,0.95]
[1750792366266,3.86486,2433.8,2433.7,0.95]
[1750792367375,36.1908,2433.8,2433.7,0.95]
[1750792367574,36.84786,2433.8,2433.7,0.95]
[1750792367765,36.1908,2433.8,2433.7,0.95]
[1750792368362,36.84786,2433.8,2433.7,0.95]
[1750792368775,36.1908,2433.8,2433.7,0.95]
[1750792369576,3.2078,2433.8,2433.7,0.95]
[1750792369773,29.2568,2433.8,2433.7,0.95]
[1750792369973,3.2078,2433.8,2433.7,0.95]
[1750792370271,29.2638,2433.8,2433.7,0.95]
[1750792370472,30.6933,2433.8,2433.7,0.95]
[1750792371068,31.35036,2433.8,2433.7,0.95]
[1750792371267,36.35036,2433.8,2433.7,0.95]
[1750792371475,31.35036,2433.8,2433.7,0.95]
[1750792371673,4.6373,2433.8,2433.7,0.95]
[1750792371870,37.6313,2433.8,2433.7,0.95]
[1750792372879,9.38826302,2434.1,2433.9,0.65702]
[1750792373082,9.38826302,2434.1,2434.0,0.657]
[1750792373280,35.04480647,2434.1,2434.0,4.6378]
[1750792374572,8.98580647,2434.1,2434.0,4.6378]
[1750792374776,35.03680647,2434.1,2434.0,4.6378]
[1750792374972,35.03280647,2434.1,2434.0,4.6378]
[1750792375371,35.02880647,2434.1,2434.0,4.6378]
[1750792376982,35.02880647,2434.1,2434.0,3.327]
[1750792379182,35.68578647,2434.1,2434.0,3.327]
[1750792379886,35.02880647,2434.1,2434.0,3.327]
[1750792380583,35.68578647,2434.1,2434.0,3.327]
[1750792380886,35.02880647,2434.1,2434.0,3.327]
[1750792381684,0.65687,2434.5,2434.4,0.65689]
[1750792381880,29.1778,2434.5,2434.2,0.65695]
[1750792382086,0.6569,2434.4,2434.3,0.65692]
[1750792382389,29.83468,2434.5,2434.4,0.65689]
[1750792382786,36.02769819,2434.5,2434.3,0.6569]
[1750792383088,9.40081819,2434.5,2434.4,0.65689]
[1750792383289,35.36281819,2434.5,2434.4,1.01689]
[1750792383787,36.01968819,2434.5,2434.4,0.36]
[1750792384189,36.01968819,2434.5,2434.4,1.01689]
[1750792384588,35.36281819,2434.5,2434.4,1.01689]
[1750792385085,35.35881819,2434.5,2434.4,1.01689]
[1750792385485,31.71100647,2434.5,2434.4,1.01689]
[1750792385785,60.66579647,2434.8,2434.6,0.65683]
[1750792385982,27.74612274,2434.7,2434.6,0.36]
[1750792386180,1.64224,2434.4,2433.8,5.24154]
[1750792386383,6.43503647,2433.9,2433.8,0.85]
[1750792386591,39.33003647,2433.9,2433.8,0.85]
[1750792386777,40.48678842,2433.9,2433.8,0.85]
[1750792387589,41.92808842,2433.9,2433.8,0.85]
[1750792388382,0.65716,2433.4,2433.3,0.27208202]
[1750792388584,32.36916647,2433.4,2433.3,1.59208202]
[1750792388783,31.71200647,2433.4,2433.3,1.59208202]
[1750792388985,31.71200647,2433.4,2433.3,2.24927202]
[1750792389590,33.52847566,2433.4,2433.3,1.59208202]
[1750792390685,33.52847566,2433.4,2433.3,1.32]
[1750792390891,33.51547566,2433.4,2433.3,0.65736876]
[1750792391190,33.51247566,2433.4,2433.3,0.34922844]
[1750792391586,32.85531566,2433.4,2433.0,5.56432343]
[1750792391784,0.65724,2433.2,2433.0,7.77432343]
[1750792391978,26.57125,2433.1,2433.0,7.77434343]
[1750792392183,27.07877973,2433.1,2433.0,7.77434343]
[1750792392384,1.82202973,2433.1,2433.0,7.77434343]
[1750792392686,27.06977973,2433.1,2433.0,6.07507]
[1750792392888,0.6573,2432.9,2432.8,0.65731]
[1750792393192,30.14608318,2432.9,2432.8,3.8]
[1750792393383,27.72307973,2432.9,2432.8,3.8]
[1750792393584,30.15327812,2432.9,2432.8,3.8]
[1750792393891,30.15328257,2432.9,2432.8,3.8]
[1750792394292,27.72307973,2432.9,2432.8,3.8]
[1750792394488,27.72307973,2432.9,2432.2,0.65748]
[1750792394489,18.40648871,2432.9,2429.7,3.2078]
[1750792394689,18.40648871,2432.9,2431.8,0.6576]
[1750792394690,2.42900231,2431.9,2431.8,0.6576]
[1750792394892,2.42900231,2431.9,2431.8,4.1976]
[1750792394893,1.16477973,2431.9,2431.8,4.1976]
[1750792395081,3.86527,2432.3,2431.8,4.1976]
[1750792395082,1.16477973,2432.1,2431.8,9.9554]
[1750792395290,1.83359012,2432.0,2431.9,6.963]
[1750792395489,1.17605012,2432.0,2431.9,9.173]
[1750792395789,1.17605012,2432.0,2431.9,7.86757]
[1750792396002,3.2078,2432.3,2432.0,0.65754]
[1750792396186,3.86526,2432.3,2432.0,3.23753]
[1750792396491,26.375,2432.6,2432.2,3.2078]
[1750792396684,26.375,2432.6,2432.3,8.3917]
[1750792396886,26.375,2432.6,2432.5,3.86521]
[1750792397085,26.375,2432.6,2432.5,0.89]
[1750792397886,2.42900231,2433.0,2432.5,5.89]
[1750792397887,26.369,2432.9,2432.5,5.89]
[1750792398090,2.42900231,2433.3,2432.6,12.9665]
[1750792398298,0.65717,2433.4,2432.9,3.86509]
[1750792398596,26.37,2433.3,2433.0,2.08496]
[1750792398795,26.37,2433.3,2433.0,9.754]
[1750792398998,27.02719,2433.3,2433.0,9.754]
[1750792399493,26.37,2433.3,2433.0,9.754]
[1750792399799,27.02719,2433.3,2433.0,10.41127]
[1750792400192,27.02719,2433.3,2433.0,9.754]
[1750792400388,27.02719,2433.3,2433.0,10.41127]
[1750792400590,0.65725,2433.1,2433.0,2.79]
[1750792400791,0.65725,2433.1,2433.0,1.30574364]
[1750792400989,0.65738,2432.6,2432.5,3.84]
[1750792401188,26.355,2432.6,2432.5,2.26]
[1750792401388,0.65736,2432.7,2432.5,2.26]
[1750792401591,32.13000647,2432.6,2432.5,2.26]
[1750792401787,32.78738647,2432.6,2432.5,2.26]
[1750792404309,27.00938,2432.6,2432.5,2.26]
[1750792408095,28.1772785,2432.6,2432.5,2.26]
[1750792409904,26.273,2432.6,2432.5,2.91741]
[1750792410296,26.255,2432.7,2432.6,0.65738]
[1750792410603,26.255,2432.7,2432.6,9.46748]
[1750792410792,26.255,2432.7,2432.6,14.46748]
[1750792410988,0.65726,2433.1,2433.0,0.65727]
[1750792411192,28.07525744,2433.1,2433.0,1.30727]
[1750792411397,27.41799744,2433.1,2433.0,1.30727]
[1750792411599,1.16799744,2433.1,2433.0,1.30727]
[1750792411808,1.64324,2433.0,2432.5,0.89]
[1750792412002,1.64324,2433.0,2432.5,0.67]
[1750792412003,3.86518,2432.6,2432.5,0.67]
[1750792412205,31.31017744,2432.6,2432.5,0.67]
[1750792412502,33.34917744,2432.6,2432.5,0.67]
[1750792413499,33.34917744,2432.6,2432.5,0.36170249]
[1750792415401,33.32817744,2432.6,2432.5,0.36170249]
[1750792416305,3.2078,2432.3,2430.5,3.2078]
[1750792416501,3.2078,2431.3,2430.9,3.2078]
[1750792416699,0.6578,2431.1,2430.9,7.0497]
[1750792416895,3.86561,2431.0,2430.9,2.53]
[1750792417602,30.21461,2431.0,2430.9,2.53]
[1750792418203,3.86561,2431.0,2430.9,2.53]
[1750792418905,3.2078,2431.0,2430.9,2.53]
[1750792419106,3.86561,2431.0,2430.9,2.53]
[1750792419308,3.2078,2431.0,2430.9,7.53]
[1750792419504,3.86549,2431.5,2430.9,12.8838]
[1750792419806,0.65767,2431.6,2431.3,0.65771]
[1750792420000,29.98173008,2432.0,2431.4,11.6034]
[1750792420210,0.65767,2431.6,2431.4,15.3134]
[1750792420600,0.65768,2431.5,2431.4,3.71]
[1750792420799,26.398,2431.6,2431.4,3.71]
[1750792420800,3.2078,2431.6,2431.4,3.71]
[1750792420996,0.65765,2431.7,2431.4,7.5755]
[1750792421398,0.65764,2431.7,2431.5,2.1228]
[1750792421604,0.65764,2431.7,2431.5,3.1428]
[1750792421803,27.07361,2431.8,2431.5,3.1428]
[1750792422004,27.07361,2431.8,2431.5,3.80047]
[1750792422294,0.65763,2431.7,2431.5,3.80047]
[1750792422702,26.416,2431.8,2431.5,3.1428]
[1750792422908,0.65765,2431.6,2431.5,1.7159]
[1750792424108,27.06665,2431.6,2431.5,1.7159]
[1750792424307,27.06665,2431.6,2431.5,1.02]
[1750792425302,29.66065332,2431.6,2431.5,1.02]
[1750792429015,28.23425332,2431.6,2431.5,1.02]
[1750792429609,27.57660332,2431.6,2431.5,1.02]
[1750792429904,28.23425332,2431.6,2431.5,1.02]
[1750792430203,16.27871773,2431.7,2431.5,1.67768]
[1750792430405,9.01171773,2431.7,2431.6,0.65765]
[1750792430599,30.70755974,2431.7,2431.6,1.20765]
[1750792431012,27.49975974,2431.7,2431.6,1.20765]
[1750792431711,3.2078,2432.0,2431.6,0.55]
[1750792431898,6.47131773,2432.2,2431.7,1.3866]
[1750792432103,27.50126955,2432.1,2432.0,0.65754]
[1750792432306,26.337,2432.5,2432.0,7.807]
[1750792432613,1.16845365,2432.4,2432.1,41.4575]
[1750792432810,1.16845365,2432.4,2432.1,1.5075]
[1750792432811,5.80391773,2432.4,2432.1,1.5075]
[1750792433003,0.65746,2432.3,2432.1,1.5075]
[1750792433204,6.46136773,2432.4,2432.2,0.65748]
[1750792433405,6.46136773,2432.4,2432.2,1.47748]
[1750792433607,0.65746,2432.3,2432.2,0.82]
[1750792434509,6.46133773,2432.5,2432.2,0.82]
[1750792434810,0.65732,2432.9,2432.7,0.65734]
[1750792435012,0.6674,2433.1,2432.8,0.65731]
[1750792435213,28.17416345,2433.0,2432.8,0.66731]
[1750792435410,28.17416345,2433.0,2432.7,0.65734]
[1750792435411,0.6573,2432.9,2432.7,0.65734]
[1750792435610,3.8651,2432.9,2432.7,0.83734]
[1750792436113,3.8651,2432.9,2432.8,0.65733]
[1750792436314,26.99529,2433.0,2432.8,0.65733]
[1750792436614,0.65724,2433.2,2433.0,0.65727]
[1750792436812,0.65724,2433.2,2433.1,0.65725]
[1750792437005,26.98021,2433.3,2433.1,0.68725]
[1750792437208,26.323,2433.3,2433.2,0.65722]
[1750792437410,26.323,2433.3,2432.7,4.5282]
[1750792437610,26.323,2433.3,2433.2,0.65722]
[1750792437810,26.98019,2433.3,2433.2,0.21]
[1750792438010,26.323,2433.3,2433.2,0.86722]
[1750792438211,26.98019,2433.3,2433.2,0.86722]
[1750792438512,26.323,2433.3,2433.2,0.86722]
[1750792438712,3.2078,2433.8,2433.2,5.21]
[1750792438916,26.9571,2433.7,2433.4,0.65715]
[1750792439115,29.5138,2433.8,2433.4,1.1]
[1750792439414,30.17086,2433.8,2433.6,0.65709]
[1750792439621,3.2078,2433.8,2433.6,1.33709]
[1750792439918,0.65706,2433.8,2433.6,1.33709]
[1750792440515,0.65708,2433.7,2433.6,0.68]
[1750792441921,3.86488,2433.7,2433.6,0.68]
[1750792442522,5.94768,2433.7,2433.6,0.68]
[1750792442719,0.65722,2433.2,2433.1,7.9713]
[1750792443016,6.8077886,2433.2,2432.9,0.65728]
[1750792443217,26.309,2433.5,2432.9,1.37]
[1750792443515,0.65722,2433.2,2433.0,0.65725]
[1750792443723,0.65725,2433.1,2433.0,0.22]
[1750792443922,0.65738,2432.6,2432.5,0.97]
[1750792444121,0.65738,2432.6,2432.5,1.71]
[1750792445121,0.65737,2432.7,2432.5,1.71]
[1750792445722,26.329,2432.8,2432.5,2.3674]
[1750792446017,26.329,2432.8,2432.5,1.71]
[1750792446226,26.329,2432.8,2432.6,1.4092]
[1750792446428,26.98634,2432.8,2432.6,3.65657]
[1750792447122,26.329,2432.8,2432.7,0.65735]
[1750792447419,0.65731,2432.9,2432.7,4.92734]
[1750792447617,0.65731,2432.9,2432.7,12.19134]
[1750792447818,0.65733,2432.8,2432.7,11.534]
[1750792449220,0.6917,2433.0,2432.7,12.19135]
[1750792449416,0.65732,2432.9,2432.7,12.19135]
[1750792450125,0.65732,2432.9,2432.7,12.19134]
[1750792450418,3.2078,2433.1,2432.7,12.19134]
[1750792450419,0.65726,2433.1,2433.0,0.65727]
[1750792450618,0.65726,2433.1,2433.0,1.60727]
[1750792451315,26.94524,2433.2,2433.0,1.60727]
[1750792451619,0.65725,2433.1,2433.0,1.60727]
[1750792452120,0.65725,2433.1,2433.0,0.95]
[1750792458016,26.236,2433.4,2433.2,0.65721]
[1750792458218,0.65719,2433.3,2433.2,1.44721]
[1750792458421,26.236,2433.4,2433.3,0.65719]
[1750792458731,0.65713,2433.6,2433.5,0.65714]
[1750792458921,3.2078,2433.7,2433.5,2.54714]
[1750792459129,3.2078,2433.7,2433.6,0.65711]
[1750792459330,3.2078,2434.0,2433.7,0.65708]
[1750792459529,0.65707,2433.8,2433.7,0.65]
[1750792460023,0.65707,2433.8,2433.7,1.30708]
[1750792460728,3.2078,2434.0,2433.7,0.65]
[1750792461031,0.65703,2433.9,2433.8,0.65705]
[1750792461231,0.65703,2433.9,2433.8,2.05705]
[1750792461425,0.657,2434.1,2433.9,0.65703]
[1750792461624,0.6558,2434.2,2434.0,0.65699]
[1750792461929,0.65694,2434.3,2434.1,7.82798]
[1750792462131,0.65694,2434.3,2434.2,0.65695]
[1750792462322,0.65694,2434.3,2434.2,1.42]
[1750792462523,1.83087029,2434.3,2434.2,1.42]
[1750792462717,3.17767029,2434.3,2434.2,1.42]
[1750792463925,2.00374,2434.3,2434.2,1.42]
[1750792464227,1.3468,2434.3,2433.7,10.3778]
[1750792464419,5.79471518,2434.5,2433.7,13.1178]
[1750792464625,0.65698,2434.1,2433.9,0.65702]
[1750792464831,0.65698,2434.1,2433.9,2.48703]
[1750792465231,1.96808,2434.1,2433.9,2.48703]
[1750792465437,1.96808,2434.1,2434.0,0.657]
[1750792465736,1.96808,2434.1,2434.0,2.187]
[1750792465926,0.65696,2434.2,2434.1,0.65698]
[1750792466132,0.65696,2434.2,2434.1,0.67698]
[1750792466536,0.65696,2434.2,2434.1,0.02]
[1750792466940,1.17364202,2434.3,2434.2,0.65695]
[1750792467137,1.17364202,2434.3,2433.7,3.2078]
[1750792467336,0.65719,2433.3,2433.2,1.36]
[1750792467543,0.65719,2433.3,2433.2,6.46]
[1750792468639,1.83003142,2433.3,2433.2,6.46]
[1750792469339,6.83003142,2433.3,2433.2,6.46]
[1750792469543,0.65731,2432.9,2432.7,11.03514]
[1750792469744,0.65731,2432.9,2432.7,12.70514]
[1750792470147,0.65729,2433.0,2432.7,12.70514]
[1750792470546,10.32771518,2433.2,2432.7,12.0478]
[1750792470843,0.65733,2432.8,2432.7,1.67]
[1750792471037,0.65732,2432.9,2432.7,1.67]
[1750792471645,0.65732,2432.9,2432.7,2.32735]
[1750792472351,3.86513,2432.8,2432.7,1.67]
[1750792472553,5.19033,2432.8,2432.7,1.67]
[1750792472745,7.0470757,2432.8,2432.7,1.67]
[1750792476343,5.7218757,2432.8,2432.7,1.67]
[1750792476547,7.1105757,2432.8,2432.7,1.67]
[1750792476747,5.0645457,2432.8,2432.7,2.32735]
[1750792476948,5.7218757,2432.8,2432.7,1.67]
[1750792478361,5.7218757,2432.8,2432.7,2.32735]
[1750792478657,1.34193,2432.8,2432.7,2.32735]
[1750792479058,1.83064426,2432.8,2432.7,1.67]
[1750792479259,1.83051712,2432.8,2432.7,1.67]
[1750792479855,1.83051712,2432.8,2432.7,2.32735]
[1750792480162,1.83051712,2432.8,2432.7,1.67]
[1750792480662,1.83051712,2432.8,2432.7,2.32735]
[1750792481162,0.65733,2432.8,2432.7,1.67]
[1750792481554,3.86513,2432.8,2432.7,1.67]
[1750792486166,5.22123,2432.8,2432.7,1.67]
[1750792486361,3.86513,2432.8,2432.7,1.67]
[1750792487266,6.39549338,2432.8,2432.7,1.67]
[1750792487467,0.65744,2432.4,2432.3,0.6589]
[1750792487670,0.65744,2432.4,2432.3,3.08636]
[1750792488168,10.3919,2432.8,2432.3,2.4289]
[1750792488368,0.65736,2432.7,2432.6,0.65737]
[1750792488665,0.65736,2432.7,2432.6,1.35737]
[1750792488859,0.65736,2432.7,2432.6,0.7]
[1750792489060,0.65736,2432.7,2432.6,1.35738]
[1750792489472,0.65736,2432.7,2432.6,0.7]
[1750792490760,0.65736,2432.7,2432.6,1.35738]
[1750792491464,0.65735,2432.7,2432.6,1.35737]
[1750792491963,0.65735,2432.7,2432.6,0.7]
[1750792492165,1.83495084,2432.7,2432.6,0.7]
[1750792492370,1.83495084,2432.7,2432.6,1.35738]
[1750792492567,1.83495084,2432.7,2432.6,0.7]
[1750792493468,1.83495084,2432.7,2432.6,1.35738]
[1750792493774,1.83495084,2432.7,2432.6,0.7]
[1750792495575,1.17760084,2432.7,2432.6,1.35738]
[1750792496070,1.83495084,2432.7,2432.6,1.35738]
[1750792497066,1.17760084,2432.7,2432.6,1.35738]
[1750792498578,1.17760084,2432.7,2432.6,4.56518]
[1750792499078,1.17760084,2432.7,2432.6,6.62098]
[1750792501378,32.976,2433.1,2433.0,0.65727]